[Event "Kragero Resort Chess A 2018"]
[Site "Kragero"]
[Date "2018.02.25"]
[Round "9"]
[White "Ingebretsen, Jens E"]
[Black "Skotheim, Andreas"]
[Result "0-1"]
[ECO "B48"]
[WhiteElo "2174"]
[BlackElo "2025"]
[Annotator "NA"]
[PlyCount "114"]
[EventDate "2018.??.??"]
[EventType "swiss"]
[EventCountry "NOR"]
[SourceTitle "playchess.com"]
[Source "ChessBase"]
[SourceQuality "1"]
[TimeControl "5400+30"]

1. e4 {[%emt 0:00:00]} c5 {[%emt 0:00:08]} 2. Nf3 {[%emt 0:00:00]} e6 {[%emt 0:00:06]} 3. d4 {[%emt 0:00:00]} cxd4 {[%emt 0:00:06]} 4. Nxd4 {[%emt 0:00:00]} Nc6 {[%emt 0:00:09]} 5. Nc3 {[%emt 0:00:00]} Qc7 {[%emt 0:00:09]} 6. Be3 {[%emt 0:00:00]} a6 {[%emt 0:00:06]} 7. Qd2 {[%emt 0:00:00]} Nf6 {[%emt 0:00:08]} 8. f4 {[%emt 0:00:00]} Bb4 {[%emt 0:13:34]} 9. Bd3 {[%emt 0:00:00]} d5 {[%emt 0:00:13]} 10. e5 {[%emt 0:00:41]} Ne4 {[%emt 0:00:41]} 11. Bxe4 {[%emt 0:00:12]} dxe4 {[%emt 0:00:09]} 12. a3 {[%emt 0:00:50]} Bxc3 {[%emt 0:01:11]} 13. Qxc3 {[%emt 0:00:07]} Bd7 {[%emt 0:01:11]} 14. O-O {[%emt 0:01:56]} O-O {[%emt 0:02:01]} 15. Ne2 {[%emt 0:05:12]} Rfc8 {[%emt 0:01:56]} 16. Rad1 {[%emt 0:02:02]} Ne7 {[%emt 0:07:44]} 17. Qxc7 {[%emt 0:11:47]} Rxc7 {[%emt 0:00:08]} 18. Bb6 {[%emt 0:02:50]} Bb5 {[%emt 0:00:18]} 19. Bxc7 {[%emt 0:01:06]} Bxe2 {[%emt 0:00:09]} 20. Bd6 {[%emt 0:15:00]} Bxd1 {[%emt 0:05:29]} 21. Rxd1 {[%emt 0:01:09]} Nd5 {[%emt 0:00:16]} 22. g3 {[%emt 0:03:06]} Rc8 {[%emt 0:00:30]} 23. c3 {[%emt 0:00:34]} b5 {[%emt 0:01:09]} 24. a4 {[%emt 0:02:35]} Nb6 {[%emt 0:09:08]} 25. axb5 {[%emt 0:01:56]} axb5 {[%emt 0:00:18]} 26. Kf2 {[%emt 0:01:19]} Ra8 {[%emt 0:05:19]} 27. Rd4 {[%emt 0:02:42]} Ra2 {[%emt 0:08:29]} 28. Rb4 {[%emt 0:01:54]} Nc4 {[%emt 0:00:29]} 29. Rxb5 {[%emt 0:01:15]} h5 {[%emt 0:01:52]} 30. h3 {[%emt 0:08:36]} Nxb2 {[%emt 0:01:13]} 31. Rb8+ {[%emt 0:01:40]} Kh7 {[%emt 0:00:13]} 32. Rc8 {[%emt 0:04:57]} Nd1+ {[%emt 0:02:45]} 33. Ke1 {[%emt 0:00:25]} Ne3 {[%emt 0:00:13]} 34. c4 {[%emt 0:00:48]} Ng2+ {[%emt 0:01:52]} 35. Kd1 {[%emt 0:02:09]} e3 {[%emt 0:00:43]} 36. Bb4 {[%emt 0:00:13]} e2+ {[%emt 0:01:23]} 37. Kc1 {[%emt 0:00:02]} e1=Q+ {[%emt 0:03:26]} 38. Bxe1 {[%emt 0:00:14]} Nxe1 {[%emt 0:00:15]} 39. c5 {[%emt 0:00:56]} Nd3+ {[%emt 0:00:51]} 40. Kd1 {[%emt 0:00:22]} Ra5 {[%emt 0:00:47]} 41. c6 {[%emt 0:00:16]} Rc5 {[%emt 0:00:24]} 42. g4 {[%emt 0:01:23]} Nxf4 {[%emt 0:00:53]} 43. gxh5 {[%emt 0:00:28]} Nxh5 {[%emt 0:01:06]} 44. Kd2 {[%emt 0:00:49]} Nf4 {[%emt 0:00:45]} 45. Ke3 {[%emt 0:00:13]} Nd5+ {[%emt 0:00:34]} 46. Kd4 {[%emt 0:00:08]} Rc3 {[%emt 0:00:56]} 47. h4 {[%emt 0:00:58]} Kg6 {[%emt 0:00:42]} 48. Ke4 {[%emt 0:00:34]} Ne7 {[%emt 0:02:02]} 49. Rf8 {[%emt 0:01:19]} Rc4+ {[%emt 0:02:30]} 50. Kd3 {[%emt 0:00:15]} Rxc6 {[%emt 0:00:10]} 51. h5+ {[%emt 0:00:07]} Kxh5 {[%emt 0:00:25]} 52. Rxf7 {[%emt 0:00:06]} Nf5 {[%emt 0:00:10]} 53. Rf8 {[%emt 0:00:12]} g5 {[%emt 0:00:29]} 54. Ke4 {[%emt 0:00:05]} Kg4 {[%emt 0:00:21]} 55. Rf6 {[%emt 0:00:20]} Kg3 {[%emt 0:00:55]} 56. Rf8 {[%emt 0:01:10]} Rc3 {[%emt 0:00:21]} 57. Rxf5 {[%emt 0:00:43]} exf5+ {[%emt 0:00:09]} 0-1

[Event "Kragero Resort Chess A 2018"]
[Site "Kragero"]
[Date "2018.02.25"]
[Round "9"]
[White "Sebastian, Andreas"]
[Black "Sahl, Sheila Barth"]
[Result "0-1"]
[ECO "A20"]
[WhiteElo "1880"]
[BlackElo "2181"]
[Annotator "NA"]
[PlyCount "94"]
[EventDate "2018.??.??"]
[EventType "swiss"]
[EventCountry "NOR"]
[SourceTitle "playchess.com"]
[Source "ChessBase"]
[SourceQuality "1"]
[TimeControl "5400+30"]

1. c4 {[%emt 0:00:00]} e5 {[%emt 0:06:00]} 2. g3 {[%emt 0:01:05]} Nf6 {[%emt 0:00:07]} 3. Bg2 {[%emt 0:00:05]} d5 {[%emt 0:00:06]} 4. cxd5 {[%emt 0:00:12]} Nxd5 {[%emt 0:00:03]} 5. Nc3 {[%emt 0:00:31]} Nb6 {[%emt 0:00:07]} 6. Nf3 {[%emt 0:00:26]} Nc6 {[%emt 0:00:09]} 7. O-O {[%emt 0:00:25]} Be7 {[%emt 0:00:12]} 8. d3 {[%emt 0:01:11]} O-O {[%emt 0:00:14]} 9. a3 {[%emt 0:00:04]} Be6 {[%emt 0:00:47]} 10. b4 {[%emt 0:00:10]} a6 {[%emt 0:08:24]} 11. Bb2 {[%emt 0:05:33]} f5 {[%emt 0:00:41]} 12. e3 {[%emt 0:04:04]} Bf6 {[%emt 0:01:12]} 13. Qe2 {[%emt 0:00:24]} Qe8 {[%emt 0:02:22]} 14. Nd2 {[%emt 0:01:24]} Rd8 {[%emt 0:02:04]} 15. Rfd1 {[%emt 0:02:04]} Qf7 {[%emt 0:05:31]} 16. Rac1 {[%emt 0:09:11]} Rd7 {[%emt 0:00:35]} 17. Ncb1 {[%emt 0:00:56]} Rfd8 {[%emt 0:05:03]} 18. Bxc6 {[%emt 0:05:34]} bxc6 {[%emt 0:00:04]} 19. Nf3 {[%emt 0:00:29]} Qh5 {[%emt 0:06:37]} 20. Rd2 {[%emt 0:04:40]} e4 {[%emt 0:08:49]} 21. Nd4 {[%emt 0:05:30]} Qxe2 {[%emt 0:00:24]} 22. Rxe2 {[%emt 0:01:59]} exd3 {[%emt 0:00:41]} 23. Rd2 {[%emt 0:07:30]} Nc4 {[%emt 0:11:11]} 24. Nxe6 {[%emt 0:01:32]} Nxd2 {[%emt 0:00:45]} 25. Bxf6 {[%emt 0:01:19]} Nxb1 {[%emt 0:02:41]} 26. Bxd8 {[%emt 0:02:42]} d2 {[%emt 0:00:53]} 27. Rxb1 {[%emt 0:00:50]} d1=Q+ {[%emt 0:00:11]} 28. Rxd1 {[%emt 0:00:27]} Rxd1+ {[%emt 0:00:03]} 29. Kg2 {[%emt 0:00:09]} Rd6 {[%emt 0:00:32]} 30. Nxg7 {[%emt 0:02:36]} Kxg7 {[%emt 0:03:05]} 31. Bxc7 {[%emt 0:00:16]} Rd3 {[%emt 0:00:19]} 32. a4 {[%emt 0:00:18]} Kf6 {[%emt 0:00:18]} 33. Kf3 {[%emt 0:01:58]} Ke6 {[%emt 0:00:37]} 34. Bb6 {[%emt 0:00:06]} Rd2 {[%emt 0:01:36]} 35. e4 {[%emt 0:01:18]} Rc2 {[%emt 0:02:43]} 36. exf5+ {[%emt 0:02:59]} Kxf5 {[%emt 0:00:03]} 37. a5 {[%emt 0:00:14]} Rc3+ {[%emt 0:00:42]} 38. Kg2 {[%emt 0:00:40]} h5 {[%emt 0:09:22]} 39. Kh3 {[%emt 0:08:56]} Rc4 {[%emt 0:00:29]} 40. Bc5 {[%emt 0:00:11]} Kg5 {[%emt 0:00:49]} 41. f4+ {[%emt 0:05:29]} Kf5 {[%emt 0:01:33]} 42. Kh4 {[%emt 0:00:31]} Rc2 {[%emt 0:00:19]} 43. h3 {[%emt 0:00:08]} Rh2 {[%emt 0:00:31]} 44. g4+ {[%emt 0:01:12]} hxg4 {[%emt 0:00:39]} 45. Kg3 {[%emt 0:00:24]} Rxh3+ {[%emt 0:00:05]} 46. Kg2 {[%emt 0:00:44]} Kxf4 {[%emt 0:00:15]} 47. Bd6+ {[%emt 0:00:06] Ke5} Ke4 {[%emt 0:00:14]} 0-1